bitfinex/quotes_ETHUSD_20251206
["timestamp","ask_amount","ask_price","bid_price","bid_amount"]
[1765064883864,0.9256,3039.9,3039.8,3.28965506]
[1765064884497,0.9256,3039.9,3039.5,7.30562371]
[1765064884673,0.4529,3039.6,3039.5,3.2900148]
[1765064884873,0.9729,3039.6,3039.5,3.2900148]
[1765064885595,0.52,3039.6,3039.5,3.7407148]
[1765064887695,0.9712,3039.6,3039.5,3.2900148]
[1765064887993,1.2588,3039.6,3039.5,3.2900148]
[1765064889202,1.2588,3039.6,3039.4,0.001]
[1765064889400,0.4496,3039.5,3039.4,0.001]
[1765064893101,1.60300254,3039.5,3039.4,0.001]
[1765064893303,1.89220254,3039.5,3039.4,0.001]
[1765064894502,2.24876305,3039.5,3039.4,0.001]
[1765064897103,5.53877785,3039.5,3039.4,0.001]
[1765064899410,5.94428185,3039.5,3039.4,0.001]
[1765064899780,6.66987596,3039.5,3039.4,0.001]
[1765064906090,15.79504577,3039.5,3039.4,0.001]
[1765064906430,49.05127705,3039.5,3039.4,0.001]
[1765064910823,49.05127705,3039.5,3038.1,0.002]
[1765064910824,0.405504,3038.5,3038.1,0.002]
[1765064910999,1.15340254,3038.2,3038.1,0.002]
[1765064911201,1.60760254,3038.2,3038.1,0.002]
[1765064912648,1.15340254,3038.2,3038.1,0.002]
[1765064912831,1.15340254,3038.2,3038.1,0.4874]
[1765064915723,1.93784305,3038.2,3038.1,0.002]
[1765064916228,2.22474305,3038.2,3038.1,0.002]
[1765064916800,1.93784305,3038.2,3038.1,0.002]
[1765064918314,1.60760254,3038.2,3038.1,0.002]
[1765064920329,2.14900254,3038.4,3038.1,1.1761]
[1765064920330,1.15340254,3038.4,3038.1,1.1761]
[1765064920532,1.15340254,3038.4,3038.3,6.33735286]
[1765064920733,1.67340254,3038.4,3038.3,6.33735286]
[1765064921023,1.67340254,3038.4,3038.3,6.83215286]
[1765064922750,1.67340254,3038.4,3038.3,10.12346708]
[1765064923642,1.15340254,3038.9,3038.3,10.12346708]
[1765064923843,1.15340254,3038.7,3038.4,6.34675286]
[1765064924219,1.15340254,3038.7,3038.6,0.4854]
[1765064924616,1.15340254,3038.7,3038.6,10.12314213]
[1765064925447,1.15340254,3039.1,3038.6,10.12314213]
[1765064925659,1.15340254,3038.9,3038.7,0.4948]
[1765064925838,1.15340254,3038.9,3038.8,5.85195286]
[1765064926152,1.15340254,3038.9,3038.8,6.33735286]
[1765064926448,1.15340254,3038.9,3038.8,10.12292553]
[1765064929730,1.15340254,3039.1,3038.8,10.12292553]
[1765064929960,0.52,3038.9,3038.8,3.29077267]
[1765064930327,0.52,3038.9,3038.8,3.74487267]
[1765064930527,0.52,3038.9,3038.8,4.22707267]
[1765064931248,0.52,3038.9,3038.8,10.07902553]
[1765064934260,0.52,3038.9,3038.3,3.29123082]
[1765064934261,1.61484025,3038.9,3038.3,3.29123082]
[1765064934450,1.15340254,3038.3,3038.2,5.85195286]
[1765064934750,1.67340254,3038.3,3038.2,5.85195286]
[1765064935051,2.41220254,3038.3,3038.1,0.002]
[1765064935255,0.0075,3038.2,3038.1,0.002]
[1765064935565,1.67340254,3038.3,3038.1,0.002]
[1765064937054,1.15340254,3038.5,3038.2,6.78825286]
[1765064937238,1.15340254,3038.7,3038.4,6.30605286]
[1765064937434,1.15340254,3039.2,3038.6,6.30605286]
[1765064937626,1.15340254,3038.7,3038.6,0.4541]
[1765064938239,1.15340254,3038.7,3038.6,0.9113]
[1765064938647,1.15340254,3038.7,3038.6,6.76325286]
[1765064939145,1.15340254,3038.7,3038.6,10.05424213]
[1765064940359,1.15340254,3038.7,3038.6,6.76325286]
[1765064940659,1.62750254,3038.7,3038.4,5.85195286]
[1765064940823,1.15340254,3038.5,3038.3,3.29129469]
[1765064941024,0.52,3038.4,3038.2,9.14333928]
[1765064941224,1.43180254,3038.3,3038.1,0.002]
[1765064941425,0.4739,3038.2,3038.1,0.002]
[1765064943159,3.76532255,3038.2,3038.1,0.002]
[1765064943364,4.63832877,3038.2,3038.1,0.002]
[1765064950454,1.34690622,3038.2,3038.1,0.002]
[1765064953938,1.67340254,3038.2,3038.1,6.99415286]
[1765064957169,1.67340254,3038.2,3038.1,0.002]
[1765064957469,1.67340254,3038.2,3038.1,0.4922]
[1765064959075,1.67340254,3038.2,3038.1,4.43373089]
[1765064959247,1.15340254,3038.5,3038.1,4.43373089]
[1765064959577,1.15340254,3038.5,3038.4,6.34215286]
[1765064959739,1.15340254,3038.5,3038.4,6.79935286]
[1765064959740,1.67340254,3038.5,3038.4,6.79935286]
[1765064962346,1.15340254,3038.7,3038.4,10.13275875]
[1765064962573,1.15340254,3038.7,3038.6,6.30535286]
[1765064962768,1.67340254,3038.7,3038.6,6.30535286]
[1765064962975,1.67340254,3038.7,3038.4,5.85195286]
[1765064962976,1.94350254,3038.7,3038.4,5.85195286]
[1765064963273,0.0018,3038.6,3038.4,5.85195286]
[1765064963857,1.67340254,3038.7,3038.4,5.85195286]
[1765064964448,1.67340254,3038.7,3038.4,9.14314646]
[1765064964947,1.15340254,3038.5,3038.4,9.14314646]
[1765064965547,1.15340254,3038.5,3038.4,5.85195286]
[1765064965746,1.15340254,3038.5,3038.4,6.30535286]
[1765064966152,1.15340254,3038.5,3038.4,6.80475286]
[1765064969984,1.15340254,3038.5,3038.4,10.09595875]
[1765064970858,1.15340254,3038.5,3038.4,6.80475286]
[1765064973587,1.15340254,3038.5,3038.4,10.09595875]
[1765064973779,0.52,3038.5,3038.4,10.09595875]
[1765064974990,1.15340254,3038.7,3038.4,6.80475286]
[1765064975299,1.67340254,3038.5,3038.4,6.80475286]
[1765064975784,1.67340254,3038.5,3038.4,10.09595875]
[1765064976487,1.67340254,3038.5,3038.4,4.24400589]
[1765064982086,1.15340254,3038.5,3038.4,3.74460589]
[1765064982270,1.67340254,3038.5,3038.4,4.24400589]
[1765064983666,1.67340254,3038.5,3038.4,3.29120589]
[1765064983867,1.93890254,3038.5,3038.4,3.29120589]
[1765064984395,1.93890254,3038.5,3038.1,0.6942]
[1765064984396,6.06217063,3038.5,3038.1,0.002]
[1765064984693,1.64400254,3038.2,3038.1,0.002]
[1765064985208,1.99609335,3038.2,3038.1,0.002]
[1765064985405,6.41861401,3038.2,3038.1,0.002]
[1765064985564,7.46627913,3038.2,3038.1,0.002]
[1765064988098,7.46627913,3038.2,3037.5,0.001]
[1765064988099,0.50499481,3037.6,3037.5,0.001]
[1765064988275,1.76599481,3037.6,3037.5,0.001]
[1765064989079,1.89784374,3037.6,3037.5,0.001]
[1765064989279,2.08762811,3037.6,3037.5,0.001]
[1765064990291,6.1052949,3037.6,3037.5,0.001]
[1765064990612,5.45344597,3037.6,3037.5,0.001]
[1765064990782,0.2635,3037.6,3037.5,0.001]
[1765064990982,0.7835,3037.6,3037.5,0.001]
[1765064992606,1.15340254,3037.8,3037.5,0.4716]
[1765064992775,1.15340254,3037.8,3037.7,0.4706]
[1765064992975,1.67340254,3037.8,3037.7,0.4706]
[1765064995612,1.15340254,3037.8,3037.7,3.76256431]
[1765064995819,1.67340254,3037.8,3037.7,4.24376431]
[1765065000321,1.67340254,3037.8,3037.7,0.9518]
[1765065000626,1.67340254,3037.8,3037.7,4.24376431]
[1765065001391,1.15340254,3037.8,3037.7,4.24376431]
[1765065001595,1.67340254,3037.8,3037.7,4.24376431]
[1765065003025,1.67340254,3037.8,3037.7,3.76256431]
[1765065003208,1.67340254,3037.8,3037.7,4.24376431]
[1765065003809,1.15340254,3037.9,3037.7,3.76256431]
[1765065004132,1.0128,3037.8,3037.5,3.29311309]
[1765065004295,1.15340254,3037.6,3037.5,0.001]
[1765065004498,1.46090254,3037.6,3037.5,0.001]
[1765065004933,1.15340254,3037.6,3037.5,0.4536]
[1765065005146,1.15340254,3037.6,3037.5,0.9348]
[1765065007133,1.15340254,3037.6,3037.5,4.22698106]
[1765065009349,0.52,3037.8,3037.5,7.51916212]
[1765065009531,0.52,3037.8,3037.7,0.4526]
[1765065010397,0.52,3037.8,3037.7,0.9338]
[1765065011865,1.0128,3037.8,3037.6,3.29197418]
[1765065012600,0.52,3037.8,3037.7,3.74456431]
[1765065013209,0.52,3037.8,3037.7,4.22576431]
[1765065014107,0.52,3037.8,3037.7,10.07477246]
[1765065017051,1.15340254,3038.1,3037.7,13.36673677]
[1765065017347,0.52,3037.8,3037.7,9.14097246]
[1765065017713,0.52,3037.8,3037.7,10.07477246]
[1765065019635,1.15340254,3038.3,3037.7,13.36673677]
[1765065019814,0.52,3038.2,3038.0,5.84900815]
[1765065020023,0.52,3038.2,3038.1,1.0687]
[1765065028248,0.52,3038.2,3038.1,4.36023089]
[1765065028851,1.15340254,3038.3,3038.1,4.36023089]
[1765065029150,0.52,3038.2,3038.1,3.42643089]
[1765065029557,0.52,3038.2,3038.1,4.40403089]
[1765065030767,1.48738303,3038.2,3037.6,3.29200639]
[1765065030938,1.15340254,3037.7,3037.6,3.29200639]
[1765065031138,2.13900254,3037.7,3037.5,0.001]
[1765065031477,0.4763,3037.6,3037.5,0.001]
[1765065031977,0.4763,3037.6,3037.5,3.29318106]
[1765065034278,1.15340254,3037.7,3037.5,0.4898]
[1765065034561,0.52,3037.6,3037.5,0.4898]
[1765065035761,0.52,3037.6,3037.5,0.001]
[1765065036141,0.7882,3037.6,3037.5,0.001]
[1765065036341,0.7882,3037.6,3037.5,9.14595525]
[1765065039951,0.52,3037.6,3037.5,15.97632944]
[1765065041581,1.62700254,3038.3,3037.5,22.56069156]
[1765065041582,0.52,3038.0,3037.5,22.56069156]
[1765065041921,0.52,3038.0,3037.9,9.14452177]
[1765065042046,0.52,3038.0,3037.9,9.63332177]
[1765065042246,0.52,3038.0,3037.9,10.12212177]
[1765065043068,0.52,3038.0,3037.9,9.63332177]
[1765065043283,0.52,3038.0,3037.9,10.12212177]
[1765065047604,0.52,3038.0,3037.9,9.63332177]
[1765065047795,0.52,3038.0,3037.9,10.12212177]
[1765065048504,0.52,3038.0,3037.9,9.63332177]
[1765065049969,0.7882,3038.0,3037.9,5.85277419]
[1765065050168,0.7882,3038.0,3037.7,3.29194809]
[1765065050169,1.45396025,3038.0,3037.7,3.29194809]
[1765065050399,1.34880254,3037.8,3037.7,3.29194809]
[1765065050570,1.60360254,3037.8,3037.7,3.29194809]
[1765065050775,1.15340254,3037.8,3037.7,9.62762228]
[1765065051585,1.40820254,3037.8,3037.7,3.29194809]
[1765065051895,1.89510254,3037.8,3037.7,3.29194809]
[1765065057224,1.40820254,3037.8,3037.7,3.29194809]
[1765065057580,0.9858,3038.0,3037.7,6.5839124]
[1765065057776,1.15340254,3037.9,3037.7,7.0621124]
[1765065058124,1.15340254,3037.9,3037.7,7.5218124]
[1765065058293,1.15340254,3037.9,3037.8,0.4782]
[1765065059213,1.15340254,3037.9,3037.8,6.33097419]
[1765065059711,1.15340254,3037.9,3037.8,9.62283013]
[1765065060513,1.62740254,3037.9,3037.8,9.14463013]
[1765065061915,0.52,3038.0,3037.8,9.62283013]
[1765065062100,0.52,3038.0,3037.9,0.4782]
[1765065062300,0.52,3038.0,3037.9,0.9379]
[1765065062496,0.52,3038.1,3037.9,0.9379]
[1765065062688,1.15340254,3038.7,3038.0,6.31247419]
[1765065062881,1.15340254,3038.7,3038.6,5.85277419]
[1765065063087,3.19315279,3038.7,3038.6,5.85277419]
[1765065063405,2.41600254,3038.7,3038.6,5.85277419]
[1765065063587,1.15340254,3038.7,3038.6,6.33097419]
[1765065063793,1.67340254,3038.7,3038.6,6.33097419]
[1765065064216,1.94290254,3038.7,3038.6,5.85277419]
[1765065065797,1.94290254,3038.7,3038.6,9.14376346]
[1765065067582,1.67340254,3038.7,3038.6,9.62196346]
[1765065067788,1.67340254,3038.7,3038.6,10.08166346]
[1765065068701,1.67340254,3038.7,3038.6,9.14376346]
[1765065069702,1.67340254,3038.7,3038.6,9.62196346]
[1765065074704,1.94290254,3038.7,3038.6,9.14376346]
[1765065075932,1.67340254,3038.7,3038.6,9.14376346]
[1765065076146,1.67340254,3038.7,3038.6,9.62196346]
[1765065078638,2.64016279,3038.7,3037.9,0.72559411]
[1765065078860,1.15340254,3038.1,3038.0,9.14441342]
[1765065079148,1.67340254,3038.1,3038.0,3.29163923]
[1765065079322,1.93830254,3038.1,3038.0,3.29163923]
[1765065080544,1.93830254,3038.1,3038.0,9.14441342]
[1765065084441,1.67340254,3038.1,3038.0,9.63071342]
[1765065088047,2.73596305,3038.1,3037.6,3.29197985]
[1765065088220,1.42030254,3037.7,3037.5,3.29318106]
[1765065088546,1.42030254,3037.7,3037.6,5.85277419]
[1765065089143,0.2669,3037.7,3037.6,5.85277419]
[1765065089358,0.52,3037.7,3037.6,6.33907419]
[1765065091749,0.52,3037.7,3037.6,9.63114687]
[1765065092350,0.52,3037.7,3037.6,10.10444687]
[1765065093970,1.15340254,3038.3,3037.6,19.98066491]
[1765065094126,1.15340254,3038.3,3038.2,6.53157419]
[1765065094326,1.67340254,3038.3,3038.2,6.33907419]
[1765065094543,2.12880254,3038.3,3038.2,5.85277419]
[1765065094726,2.40860254,3038.3,3038.2,5.85277419]
[1765065095137,2.12880254,3038.3,3038.2,5.85277419]
[1765065096080,10.87400203,3039.0,3038.2,10.10379674]
[1765065096081,1.15340254,3039.0,3038.2,10.10379674]
[1765065096349,1.15340254,3038.6,3038.4,0.4863]
[1765065096731,1.15340254,3038.6,3038.5,0.4863]
[1765065097336,1.15340254,3038.6,3038.5,9.62564703]
[1765065099460,1.15340254,3038.8,3038.5,13.39004461]
[1765065100652,0.2566,3038.6,3038.5,9.62564703]
[1765065100855,1.41000254,3038.6,3038.5,3.29109758]
[1765065101162,1.89680254,3038.6,3038.5,3.29109758]
[1765065101459,1.41000254,3038.6,3038.5,3.29109758]
[1765065101637,1.41000254,3038.6,3038.3,3.29129488]
[1765065101638,1.41000254,3038.6,3038.2,6.5828451]
[1765065101839,0.52,3038.5,3038.4,5.84824945]
[1765065102237,0.52,3038.5,3038.4,6.33454945]
[1765065102756,0.52,3038.5,3038.4,6.80784945]
[1765065103554,0.52,3038.5,3038.4,10.09905534]
[1765065124762,1.15340254,3039.0,3038.4,13.41186123]
[1765065124971,0.52,3038.9,3038.7,6.34124945]
[1765065125574,1.15340254,3038.8,3038.7,6.34124945]
[1765065126273,1.15340254,3038.8,3038.7,9.63213041]
[1765065127744,1.15340254,3039.0,3038.7,10.12703041]
[1765065127946,0.52,3038.9,3038.8,0.4949]
[1765065128351,0.52,3038.9,3038.8,4.27867267]
[1765065128851,0.52,3038.9,3038.8,3.78377267]
[1765065129470,0.001,3039.8,3039.6,0.493]
[1765065129799,0.001,3040.1,3039.9,0.493]
[1765065129960,0.001,3040.1,3040.0,7.06684356]
[1765065130153,0.001,3040.1,3040.0,7.96036559]
[1765065130487,0.001,3040.1,3040.0,11.74473927]
[1765065130852,0.001,3040.1,3040.0,12.73225216]
[1765065131481,0.001,3040.1,3040.0,13.60673445]
[1765065135756,0.001,3040.1,3040.0,11.83873013]
[1765065141766,0.001,3040.1,3040.0,12.38298809]
[1765065142601,0.2866,3040.1,3040.0,5.54683864]
[1765065142767,0.001,3040.1,3040.0,11.31163013]
[1765065145006,0.001,3040.1,3040.0,11.77253013]
[1765065150378,0.001,3040.3,3040.1,0.72559411]
[1765065150593,0.001,3040.3,3040.2,0.6568]
[1765065150795,0.001,3040.3,3040.2,1.1177]
[1765065150991,1.61660254,3041.1,3040.2,2.10509264]
[1765065151192,0.6586,3041.0,3040.7,5.84824945]
[1765065151709,0.2856,3040.8,3040.7,5.84824945]
[1765065152308,1.15340254,3041.3,3040.7,6.30904945]
[1765065152479,1.61660254,3041.3,3041.2,9.13642517]
[1765065152880,1.89600254,3041.3,3041.2,9.13642517]
[1765065155809,1.89600254,3041.3,3041.2,5.84824945]
[1765065156600,5.58237479,3041.3,3040.6,3.28877929]
[1765065156913,1.15340254,3040.7,3040.6,3.28877929]
[1765065157116,1.62630254,3040.7,3040.6,9.13702874]
[1765065157314,2.08770254,3040.7,3040.6,9.13702874]
[1765065158486,2.08770254,3040.7,3040.6,9.12887996]
[1765065159716,2.08770254,3040.7,3040.5,3.28885206]
[1765065159921,2.08770254,3040.7,3040.2,0.98744789]
[1765065159922,1.34690254,3040.7,3040.6,5.84010067]
[1765065160419,2.08950254,3040.7,3040.6,9.12892524]
[1765065161720,0.9361,3040.7,3040.6,9.12892524]
[1765065161920,0.002,3041.4,3040.6,22.46837505]
[1765065162216,0.4632,3041.3,3040.6,7.56495079]
[1765065162417,0.4632,3041.3,3041.2,5.84010067]
[1765065162783,0.7426,3041.3,3041.2,5.84010067]
[1765065163516,0.002,3041.4,3041.2,5.84010067]
[1765065163698,0.002,3041.4,3041.3,5.84010067]
[1765065164221,0.7446,3041.4,3041.3,9.12816827]
[1765065164789,0.7446,3041.4,3041.3,5.84010067]
[1765065167423,0.7446,3041.4,3041.3,9.12816827]
[1765065168422,0.002,3041.4,3041.3,9.12816827]
[1765065168622,0.002,3041.4,3041.3,9.58896827]
[1765065169805,0.2814,3041.4,3041.3,5.84010067]
[1765065170395,0.2814,3041.4,3041.3,9.12816827]
[1765065172491,0.7428,3041.4,3041.3,9.12816827]
[1765065173628,0.2814,3041.4,3041.3,5.84010067]
[1765065174608,0.2814,3041.4,3041.3,9.12816827]
[1765065175025,1.43480254,3041.4,3040.6,0.1999]
[1765065175212,1.15340254,3041.1,3040.7,6.57742287]
[1765065175924,0.4643,3041.0,3040.7,6.57742287]
[1765065176422,1.61970254,3041.4,3040.9,5.84010067]
[1765065176624,1.61970254,3041.4,3041.3,5.84010067]
[1765065176794,1.15540254,3041.4,3041.3,5.84010067]
[1765065176991,1.63060254,3041.4,3041.3,5.84010067]
[1765065177497,1.89810254,3041.4,3041.3,5.84010067]
[1765065178029,1.89810254,3041.4,3040.7,0.4928]
[1765065178328,0.2675,3041.3,3041.2,5.84010067]
[1765065178808,0.2702,3041.3,3041.2,5.84010067]
[1765065179902,1.15540254,3041.4,3041.2,9.59005857]
[1765065180233,0.002,3041.4,3041.3,0.4618]
[1765065180528,0.002,3041.4,3041.3,4.2473676]
[1765065181327,0.002,3041.4,3041.3,3.7498676]
[1765065182227,0.2481,3041.4,3041.3,3.2880676]
[1765065182412,0.7424,3041.4,3041.3,5.84010067]
[1765065184406,0.002,3041.4,3041.3,10.08746827]
[1765065185905,0.002,3041.4,3041.3,9.58996827]
[1765065187326,0.2481,3041.4,3041.3,9.12816827]
[1765065188057,0.7424,3041.4,3041.1,5.84010067]
[1765065188341,0.2437,3041.2,3041.1,9.12838451]
[1765065188923,0.7404,3041.2,3041.1,9.12838451]
[1765065189432,0.7404,3041.2,3040.3,0.98725616]
[1765065189618,1.15340254,3040.9,3040.8,5.84010067]
[1765065190018,2.08280254,3040.9,3040.8,5.84010067]
[1765065193432,2.08280254,3040.9,3040.4,3.28900487]
[1765065193433,2.08280254,3040.9,3040.6,5.84010067]
[1765065193638,1.15340254,3040.7,3040.6,5.84010067]
[1765065193814,1.92060254,3040.7,3040.6,5.84010067]
[1765065194014,2.41500254,3040.7,3040.6,5.84010067]
[1765065194556,1.92060254,3040.7,3040.6,5.84010067]
[1765065195565,2.41500254,3040.7,3040.6,5.84010067]
[1765065200880,2.41500254,3040.7,3040.3,3.28911035]
[1765065201170,0.4515,3040.3,3040.2,9.12931428]
[1765065201535,0.7446,3040.3,3040.2,5.84010067]
[1765065202260,0.7446,3040.3,3040.2,9.12935795]
[1765065202448,0.4515,3040.3,3040.2,9.12935795]
[1765065205378,1.15340254,3040.4,3040.2,9.12935795]
[1765065206874,0.4499,3040.3,3040.2,9.12935795]
[1765065215280,0.7446,3040.3,3040.2,9.12935795]
[1765065215795,0.7446,3040.3,3040.2,5.84010067]
[1765065215961,1.45340025,3040.3,3039.9,3.28954479]
[1765065216161,1.60490254,3040.0,3039.9,3.28954479]
[1765065216563,1.89800254,3040.0,3039.9,3.28954479]
[1765065216963,1.89800254,3040.0,3039.8,9.12975136]
[1765065217158,0.6683,3039.9,3039.7,3.2897678]
[1765065217485,1.41540254,3039.8,3039.7,3.2897678]
[1765065217674,1.88520254,3039.8,3039.7,3.2897678]
[1765065218377,1.88520254,3039.8,3039.5,5.84440457]
[1765065218587,0.4515,3039.6,3039.5,5.84440457]
[1765065219689,0.4515,3039.6,3039.5,9.13441937]
[1765065220484,1.43640254,3039.8,3039.5,12.42443417]
[1765065220658,1.15340254,3039.8,3039.5,12.42443417]
[1765065220858,1.15340254,3039.8,3039.5,12.87503417]
[1765065221059,1.62320254,3040.7,3039.7,0.4513]
[1765065221377,0.519,3040.2,3040.1,0.4513]
[1765065221865,0.519,3040.2,3040.1,4.19126548]
[1765065222470,0.519,3040.2,3040.1,3.28936548]
[1765065222801,1.2517,3040.2,3040.1,3.28936548]
[1765065223204,0.7839,3040.2,3040.1,3.28936548]
[1765065223386,0.519,3040.2,3040.1,3.74066548]
[1765065225716,1.15340254,3040.7,3040.1,4.37736548]
[1765065225998,1.15340254,3040.5,3040.4,5.84440457]
[1765065226484,1.67240254,3040.7,3040.4,5.84440457]
[1765065226485,1.67240254,3040.7,3040.5,3.28893274]
[1765065226787,2.14220254,3040.7,3040.5,3.28893274]
[1765065226988,0.2649,3040.6,3040.4,9.13341167]
[1765065227185,1.15600254,3040.5,3040.4,9.13341167]
[1765065229289,1.62580254,3040.5,3040.4,5.84440457]
[1765065229792,1.15600254,3040.5,3040.4,9.13344548]
[1765065229959,1.15600254,3040.5,3040.4,5.84440457]
[1765065230390,1.64870254,3040.5,3040.4,5.84440457]
[1765065230691,1.64870254,3040.5,3040.2,3.28918141]
[1765065230891,1.15340254,3040.3,3040.2,3.28918141]
[1765065231086,1.60960254,3040.3,3040.1,9.13373794]
[1765065231390,0.2377,3040.2,3040.1,9.13373794]
[1765065232172,0.7304,3040.2,3040.1,9.13373794]
[1765065232687,0.2377,3040.2,3039.9,0.98757141]
[1765065232892,1.39570254,3040.0,3039.9,3.28957677]
[1765065233259,1.88590254,3040.0,3039.8,10.12168607]
[1765065233485,0.2447,3039.9,3039.8,9.13404964]
[1765065234363,0.2447,3039.9,3039.8,5.84440457]
[1765065234565,2.1410975,3040.8,3039.9,3.28958189]
[1765065234861,2.1410975,3040.8,3040.5,5.84440457]
[1765065234862,1.15340254,3040.6,3040.5,5.84440457]
[1765065235266,1.39570254,3040.6,3040.5,5.84440457]
[1765065237392,1.88590254,3040.6,3040.2,5.84440457]
[1765065237605,1.15340254,3040.3,3040.2,9.13366185]
[1765065238097,1.15340254,3040.3,3040.2,9.58676185]
[1765065238298,1.15340254,3040.3,3040.2,10.05636185]
[1765065238514,1.88580254,3040.3,3040.0,3.28939232]
[1765065238797,1.61880254,3040.1,3039.1,5.84440457]
[1765065238962,1.15340254,3039.3,3039.2,0.98780879]
[1765065239165,1.15340254,3039.3,3039.1,5.84440457]
[1765065239361,1.15340254,3039.3,3039.2,3.29023139]
[1765065239588,1.15340254,3039.3,3039.1,9.13482567]
[1765065240363,0.2493,3039.2,3039.1,5.84440457]
[1765065240692,0.2493,3039.2,3039.1,9.13485239]
[1765065240894,1.15340254,3039.3,3039.1,9.62265239]
[1765065241096,1.15340254,3039.9,3039.2,0.9574]
[1765065241394,2.16620254,3040.1,3039.8,5.84440457]
[1765065241568,0.2471,3039.9,3039.8,5.84440457]
[1765065246197,0.7384,3039.9,3039.6,3.28985161]
[1765065246396,1.15340254,3039.7,3039.5,9.134378]
[1765065247677,0.7384,3039.6,3039.1,3.29036566]
[1765065247980,1.15830254,3039.5,3039.2,5.84440457]
[1765065248301,1.15830254,3039.5,3039.3,3.2902313]
[1765065250804,1.15830254,3039.5,3039.2,9.13471509]
[1765065250986,1.15340254,3039.3,3039.2,9.13471509]
[1765065251800,1.15340254,3039.3,3039.2,9.62251509]
[1765065252398,1.40050254,3039.3,3039.2,9.13471509]
[1765065252606,1.15340254,3039.3,3039.2,9.13471509]
[1765065252780,1.15340254,3039.3,3039.2,9.62251509]
[1765065254136,1.15340254,3039.3,3039.2,3.77811052]
[1765065256227,1.89180254,3039.3,3039.1,3.29044445]
[1765065256422,0.0049,3039.2,3039.1,3.29044445]
[1765065257422,1.15340254,3039.3,3039.2,3.29033956]
[1765065259547,1.40050254,3039.3,3039.2,3.29033956]
[1765065260050,1.89180254,3039.3,3039.2,3.29033956]
[1765065260213,1.89180254,3039.3,3039.0,3.29154233]
[1765065260416,1.15340254,3039.1,3039.0,3.29154233]
[1765065260652,1.15340254,3039.1,3039.0,3.78804233]
[1765065260850,1.15340254,3039.1,3039.0,4.26594233]
[1765065261353,1.15340254,3039.3,3039.0,7.55649843]
[1765065267249,1.15340254,3039.3,3039.0,7.05999843]
[1765065267630,1.64490254,3039.3,3039.0,7.05999843]
[1765065268953,1.15340254,3039.3,3039.0,7.05999843]
[1765065269658,1.15340254,3039.3,3039.0,7.55649843]
[1765065269824,1.64490254,3039.3,3039.0,7.05999843]
[1765065270024,1.15340254,3039.3,3039.0,7.05999843]
[1765065270857,1.64490254,3039.3,3039.0,7.05999843]
[1765065271865,1.64490254,3039.3,3039.0,3.29154233]
[1765065271866,1.40280254,3039.1,3039.0,3.29154233]
[1765065272834,1.89180254,3039.1,3039.0,0.001]
[1765065273664,1.15340254,3039.9,3039.0,0.99198678]
[1765065273848,1.15340254,3039.7,3039.6,5.84440457]
[1765065274360,1.15340254,3039.7,3039.6,6.32230457]
[1765065274850,1.15340254,3039.7,3039.6,9.61221113]
[1765065276326,1.15340254,3039.7,3039.6,9.13431113]
[1765065276525,1.40280254,3039.7,3039.5,3.2899836]
[1765065276954,0.0049,3039.6,3039.5,3.2899836]
[1765065278363,0.0049,3039.6,3039.5,9.1348114]
[1765065280166,0.0049,3039.6,3039.5,5.8448278]
[1765065280471,0.4964,3039.6,3039.3,5.8448278]
[1765065280640,1.15340254,3039.4,3039.3,5.8448278]
[1765065280840,1.40280254,3039.4,3039.3,9.1350591]
[1765065281052,1.89180254,3039.4,3039.3,9.1350591]
[1765065285169,1.40280254,3039.4,3039.3,9.1350591]
[1765065286670,0.52,3039.5,3039.3,10.1094591]
[1765065286858,0.52,3039.5,3039.4,0.9744]
[1765065288246,0.52,3039.5,3039.4,4.26452305]
[1765065288785,0.52,3039.5,3039.4,3.76802305]
[1765065292388,0.7694,3039.5,3039.4,9.13495085]
[1765065293489,0.52,3039.5,3039.4,9.63155085]
[1765065295362,0.52,3039.5,3039.4,10.10815085]
[1765065301470,0.52,3039.5,3039.4,4.26332305]
[1765065301671,0.52,3039.5,3039.4,3.78672305]
[1765065303094,0.52,3039.5,3039.2,3.2902734]
[1765065303095,0.7388,3039.5,3039.2,3.2902734]
[1765065303296,1.19452501,3039.7,3039.2,3.2902734]
[1765065303297,1.43670254,3039.3,3039.2,3.2902734]
[1765065305398,1.15340254,3039.7,3039.2,7.53541296]
[1765065305399,1.60780254,3039.7,3039.2,7.53541296]
[1765065305593,1.15340254,3039.5,3039.2,7.05921296]
[1765065306102,1.15340254,3039.5,3039.2,7.53541296]
[1765065306902,1.15340254,3039.5,3039.4,5.8448278]
[1765065307705,1.43950254,3039.5,3039.4,5.8448278]
[1765065308674,1.43950254,3039.5,3039.4,9.13495085]
[1765065309000,1.43950254,3039.5,3039.4,5.8448278]
[1765065309201,1.89220254,3039.5,3039.4,5.8448278]
[1765065309974,1.89220254,3039.5,3039.4,9.13495085]
[1765065310304,1.43950254,3039.5,3039.4,9.13495085]
[1765065319422,1.43950254,3039.5,3039.2,6.58066582]
[1765065319599,1.43950254,3039.5,3039.4,5.8448278]
[1765065319920,1.89220254,3039.5,3039.4,5.8448278]
[1765065321415,1.89220254,3039.5,3039.4,9.13495085]
[1765065321802,1.43950254,3039.5,3039.4,5.8448278]
[1765065322002,1.89220254,3039.5,3039.4,5.8448278]
[1765065323025,1.89220254,3039.5,3039.4,9.13495085]
[1765065323190,1.43950254,3039.5,3039.4,9.13495085]
[1765065327629,1.15340254,3039.5,3039.4,9.13495085]
[1765065328133,1.15340254,3039.5,3039.4,9.62495085]
[1765065328330,1.15340254,3039.5,3039.4,10.08835085]
[1765065333447,1.15340254,3039.5,3039.4,9.62495085]
[1765065334422,1.15340254,3039.5,3039.4,3.78012305]
[1765065334765,1.89420254,3039.5,3039.4,3.29012305]
[1765065335642,1.64720254,3039.5,3039.4,3.29012305]
[1765065335943,1.15340254,3039.5,3039.4,3.78012305]
[1765065337946,1.15340254,3039.5,3039.4,4.24352305]
[1765065338246,1.15340254,3039.5,3039.4,3.78012305]
[1765065345563,1.89200254,3039.5,3039.3,3.2902313]
[1765065345935,1.63020254,3039.5,3039.3,3.2902313]
[1765065346761,1.63020254,3039.5,3039.2,3.29033393]
[1765065347860,1.63020254,3039.5,3039.2,6.58067349]
[1765065348158,1.63020254,3039.5,3039.2,3.29033393]
[1765065348159,1.15340254,3039.3,3039.2,3.29033393]
[1765065348758,1.15340254,3039.7,3039.4,0.49]
[1765065348957,1.15340254,3040.3,3039.6,0.49]
[1765065349170,1.15340254,3040.0,3039.7,0.49]
[1765065349327,1.15340254,3040.0,3039.8,0.4634]